fUST/lending_fUST_20250708
["ID","MTS","AMOUNT","RATE_DAILY","PERIOD"]
[370287125,1751937050208,-930.26,0.00020273,2]
[370287127,1751937050218,-460.0,0.00020273,2]
[370287129,1751937050228,-476.59,0.00020273,2]
[370287131,1751937050237,-619.01,0.00020273,2]
[370287133,1751937050247,-3003.55,0.00020273,2]
[370287135,1751937050257,-460.0,0.00020273,2]
[370287137,1751937050267,-603.53,0.00020273,2]
[370287139,1751937050276,-1916.12,0.00020273,2]
[370287141,1751937050285,-460.0,0.00020273,2]
[370287143,1751937050294,-460.0,0.00020273,2]
[370287145,1751937050304,-1735.96,0.00020273,2]
[370287146,1751937050313,-585.99,0.00020273,2]
[370287147,1751937050323,-475.74,0.00020273,2]
[370287148,1751937050333,-460.0,0.00020273,2]
[370287149,1751937050342,-460.0,0.00020273,2]
[370287150,1751937050352,-460.0,0.00020273,2]
[370287151,1751937050362,-380.83929479,0.00020273,2]
[370287152,1751937050371,-1756.11,0.00020273,2]
[370287153,1751937050380,-770.94,0.00020273,2]
[370287154,1751937050390,-505.72,0.00020273,2]
[370287155,1751937050399,-460.0,0.00020273,2]
[370287156,1751937050409,-847.18,0.00020273,2]
[370287157,1751937050422,-460.0,0.00020273,2]
[370287158,1751937050432,-460.0,0.00020273,2]
[370287159,1751937050441,-460.0,0.00020273,2]
[370287161,1751937050451,-3003.21,0.00020273,2]
[370287163,1751937050462,-703.2,0.00020273,2]
[370287165,1751937050471,-460.0,0.00020273,2]
[370287167,1751937050480,-460.0,0.00020273,2]
[370287169,1751937050490,-460.0,0.00020273,2]
[370287171,1751937050500,-460.0,0.00020273,2]
[370287173,1751937050509,-2471.39,0.00020273,2]
[370287175,1751937050519,-623.22,0.00020273,2]
[370287177,1751937050528,-460.0,0.00020273,2]
[370287179,1751937050538,-460.0,0.00020273,2]
[370287181,1751937050547,-507.55,0.00020273,2]
[370287183,1751937050557,-641.51,0.00020273,2]
[370287185,1751937050568,-460.0,0.00020273,2]
[370287187,1751937050578,-460.0,0.00020273,2]
[370287190,1751937050589,-460.0,0.00020273,2]
[370287191,1751937050599,-460.0,0.00020273,2]
[370287194,1751937050609,-1844.93,0.00020273,2]
[370287195,1751937050618,-596.53,0.00020273,2]
[370287197,1751937050627,-1237.37,0.00020273,2]
[370287199,1751937050637,-460.0,0.00020273,2]
[370287201,1751937050646,-460.0,0.00020273,2]
[370287203,1751937050655,-460.0,0.00020273,2]
[370287205,1751937050665,-765.87,0.00020273,2]
[370287207,1751937050674,-460.0,0.00020273,2]
[370287209,1751937050684,-460.0,0.00020273,2]
[370287211,1751937050693,-561.06,0.00020273,2]
[370287213,1751937050702,-3787.17,0.00020273,2]
[370287215,1751937050711,-460.0,0.00020273,2]
[370287218,1751937050721,-3856.42,0.00020273,2]
[370287220,1751937050731,-460.0,0.00020273,2]
[370287222,1751937050740,-218.60456727,0.00020294,2]
[370287223,1751937050750,-3554.15355404,0.00020314,3]
[370287226,1751937050760,-563.0266348,0.00020385,2]
[370287228,1751937050769,-604.4717,0.00020404,4]
[370287229,1751937050778,-167.0,0.00020515,4]
[370287231,1751937050787,-1471.20296462,0.00020516,2]
[370287234,1751937050797,-3554.15355404,0.00020521,3]
[370287235,1751937050806,-151.0,0.00020547,2]
[370287238,1751937050815,-151.0,0.00020547,2]
[370287239,1751937050825,-460.0,0.00020547,2]
[370287241,1751937050835,-151.0,0.00020547,2]
[370287244,1751937050844,-460.0,0.00020547,2]
[370287245,1751937050854,-460.0,0.00020547,2]
[370287247,1751937050863,-593.79,0.00020547,2]
[370287249,1751937050873,-460.0,0.00020547,2]
[370287251,1751937050882,-725.15,0.00020547,2]
[370287253,1751937050891,-460.0,0.00020547,2]
[370287255,1751937050901,-460.0,0.00020547,2]
[370287257,1751937050910,-460.0,0.00020547,2]
[370287260,1751937050920,-445.07046585,0.00020547,2]
[370287262,1751937050929,-512.84,0.00020547,2]
[370287264,1751937050938,-151.0,0.00020547,2]
[370287266,1751937050947,-460.0,0.00020547,2]
[370287267,1751937050956,-460.0,0.00020547,2]
[370287269,1751937050966,-460.0,0.00020547,2]
[370287272,1751937050975,-460.0,0.00020547,2]
[370287273,1751937050985,-460.0,0.00020547,2]
[370287275,1751937050994,-460.0,0.00020547,2]
[370287278,1751937051003,-4588.62,0.00020547,2]
[370287279,1751937051012,-594.4,0.00020547,2]
[370287282,1751937051022,-460.0,0.00020547,2]
[370287284,1751937051032,-717.96,0.00020547,2]
[370287285,1751937051041,-460.0,0.00020547,2]
[370287287,1751937051050,-1053.76,0.00020547,2]
[370287290,1751937051061,-460.0,0.00020547,2]
[370287291,1751937051070,-460.0,0.00020547,2]
[370287294,1751937051079,-460.0,0.00020547,2]
[370287296,1751937051088,-460.0,0.00020547,2]
[370287298,1751937051097,-460.0,0.00020547,2]
[370287300,1751937051106,-460.0,0.00020547,2]
[370287301,1751937051116,-2549.65,0.00020547,2]
[370287303,1751937051125,-5668.98,0.00020547,2]
[370287305,1751937051134,-460.0,0.00020547,2]
[370287308,1751937051143,-1332.79,0.00020547,2]
[370287319,1751937051245,-460.0,0.00020547,2]
[370287321,1751937051256,-460.0,0.00020547,2]
[370287323,1751937051266,-607.07,0.00020547,2]
[370287325,1751937051275,-460.0,0.00020547,2]
[370287327,1751937051285,-460.0,0.00020547,2]
[370287329,1751937051294,-520.87,0.00020547,2]
[370287331,1751937051304,-460.0,0.00020547,2]
[370287334,1751937051314,-500.99206499,0.00020547,2]
[370287336,1751937051323,-460.0,0.00020547,2]
[370287338,1751937051333,-541.26,0.00020547,2]
[370287340,1751937051342,-460.0,0.00020547,2]
[370287341,1751937051351,-610.79,0.00020547,2]
[370287343,1751937051361,-1850.41,0.00020547,2]
[370287346,1751937051371,-1644.49,0.00020547,2]
[370287348,1751937051380,-1272.17,0.00020547,2]
[370287350,1751937051390,-3081.45,0.00020547,2]
[370287352,1751937051399,-930.26,0.00020547,2]
[370287354,1751937051409,-476.59,0.00020547,2]
[370287356,1751937051423,-619.01,0.00020547,2]
[370287358,1751937051433,-3003.55,0.00020547,2]
[370287360,1751937051442,-603.53,0.00020547,2]
[370287362,1751937051452,-1916.12,0.00020547,2]
[370287364,1751937051462,-460.0,0.00020547,2]
[370287366,1751937051471,-460.0,0.00020547,2]
[370287368,1751937051481,-1735.96,0.00020547,2]
[370287370,1751937051490,-585.99,0.00020547,2]
[370287372,1751937051501,-460.0,0.00020547,2]
[370287374,1751937051512,-460.0,0.00020547,2]
[370287376,1751937051521,-460.0,0.00020547,2]
[370287378,1751937051533,-1756.11,0.00020547,2]
[370287380,1751937051542,-770.94,0.00020547,2]
[370287382,1751937051552,-505.72,0.00020547,2]
[370287384,1751937051562,-460.0,0.00020547,2]
[370287386,1751937051572,-847.18,0.00020547,2]
[370287388,1751937051582,-460.0,0.00020547,2]
[370287390,1751937051591,-460.0,0.00020547,2]
[370287392,1751937051601,-3003.21,0.00020547,2]
[370287394,1751937051610,-703.2,0.00020547,2]
[370287397,1751937051620,-460.0,0.00020547,2]
[370287398,1751937051629,-460.0,0.00020547,2]
[370287401,1751937051639,-2471.39,0.00020547,2]
[370287403,1751937051648,-623.22,0.00020547,2]
[370287405,1751937051658,-460.0,0.00020547,2]
[370287407,1751937051667,-460.0,0.00020547,2]
[370287409,1751937051676,-507.55,0.00020547,2]
[370287411,1751937051686,-641.51,0.00020547,2]
[370287413,1751937051695,-460.0,0.00020547,2]
[370287415,1751937051704,-460.0,0.00020547,2]
[370287417,1751937051714,-460.0,0.00020547,2]
[370287419,1751937051724,-1844.93,0.00020547,2]
[370287421,1751937051733,-596.53,0.00020547,2]
[370287423,1751937051743,-1237.37,0.00020547,2]
[370287425,1751937051753,-460.0,0.00020547,2]
[370287427,1751937051761,-460.0,0.00020547,2]
[370287429,1751937051771,-460.0,0.00020547,2]
[370287431,1751937051780,-765.87,0.00020547,2]
[370287433,1751937051790,-561.06,0.00020547,2]
[370287435,1751937051799,-460.0,0.00020547,2]
[370287437,1751937051808,-3787.17,0.00020547,2]
[370287439,1751937051818,-3856.42,0.00020547,2]
[370287441,1751937051827,-500.0,0.00020547,14]
[370287443,1751937051837,-460.0,0.00020547,2]
[370287445,1751937051846,-168.0,0.00020555,2]
[370287447,1751937051855,-420.0,0.00020566,2]
[370287449,1751937051865,-420.0,0.00020566,2]
[370287451,1751937051874,-168.0,0.00020567,2]
[370287453,1751937051883,-1500.0,0.00020568,2]
[370287455,1751937051891,-1017.3753188,0.00020568,2]
[370287456,1751937051900,-150.0,0.00020603,2]
[370287458,1751937051909,-177.986,0.0002066,2]
[370287461,1751937051919,-586.824,0.0002066,2]
[370287462,1751937051928,-1680.0,0.00020666,2]
[370287465,1751937051938,-215.0738,0.00020681,2]
[370287467,1751937051950,-151.0,0.000207,3]
[370287469,1751937051959,-214.06929976,0.00020728,3]
[370287471,1751937051969,-12584.46609586,0.00020728,3]
[370287473,1751937051978,-160.0,0.00020728,3]
[370287475,1751937051987,-2877.77716306,0.00020728,3]
[370287516,1751937052368,-256.18424882,0.00018865,2]
[370287518,1751937052378,-460.0,0.00019178,2]
[370287520,1751937052388,-151.0,0.00019178,2]
[370287522,1751937052398,-317.66,0.00019178,2]
[370287524,1751937052408,-464.23988757,0.00019178,2]
[370287526,1751937052419,-151.0,0.00019205,2]
[370287528,1751937052430,-460.0,0.00019452,2]
[370287530,1751937052439,-460.0,0.00019452,2]
[370287532,1751937052450,-460.0,0.00019726,2]
[370287534,1751937052459,-460.0,0.00019726,2]
[370287536,1751937052469,-460.0,0.00019726,2]
[370287538,1751937052478,-436.79021353,0.0002,2]
[370287540,1751937052488,-460.0,0.0002,2]
[370287542,1751937052498,-460.0,0.0002,2]
[370287544,1751937052508,-460.0,0.00020273,2]
[370287556,1751937052517,-460.0,0.00020273,2]
[370287558,1751937052621,-460.0,0.00020547,2]
[370287560,1751937052631,-676.37639098,0.00020728,3]
[370287562,1751937052640,-848.27993403,0.00020728,3]
[370287564,1751937052650,-167.0,0.00020763,4]
[370287566,1751937052659,-151.0,0.000208,3]
[370287568,1751937052669,-925.35185906,0.000208,2]
[370287570,1751937052678,-1000.0,0.000208,2]
[370287572,1751937052687,-2000.0,0.00020816,2]
[370287574,1751937052697,-168.0,0.00020817,2]
[370287576,1751937052706,-300.0,0.00020821,2]
[370287578,1751937052716,-300.0,0.00020821,2]
[370287580,1751937052725,-170.73077212,0.00020821,2]
[370287582,1751937052735,-460.0,0.00020821,2]
[370287583,1751937052744,-252.220964,0.00020821,2]
[370287584,1751937052754,-460.0,0.00020821,2]
[370287585,1751937052763,-568.97729313,0.00020821,2]
[370287586,1751937052772,-593.79,0.00020821,2]
[370287587,1751937052781,-460.0,0.00020821,2]
[370287588,1751937052791,-725.15,0.00020821,2]
[370287589,1751937052800,-460.0,0.00020821,2]
[370287590,1751937052810,-460.0,0.00020821,2]
[370287591,1751937052819,-460.0,0.00020821,2]
[370287592,1751937052828,-512.84,0.00020821,2]
[370287593,1751937052837,-151.0,0.00020821,2]
[370287594,1751937052847,-151.0,0.00020821,2]
[370287595,1751937052855,-460.0,0.00020821,2]
[370287596,1751937052864,-460.0,0.00020821,2]
[370287598,1751937052874,-460.0,0.00020821,2]
[370287600,1751937052883,-460.0,0.00020821,2]
[370287602,1751937052892,-4588.62,0.00020821,2]
[370287604,1751937052902,-594.4,0.00020821,2]
[370287606,1751937052912,-460.0,0.00020821,2]
[370287608,1751937052922,-460.0,0.00020821,2]
[370287610,1751937052931,-1053.76,0.00020821,2]
[370287612,1751937052941,-460.0,0.00020821,2]
[370287614,1751937052950,-550.06,0.00020821,2]
[370287616,1751937052959,-460.0,0.00020821,2]
[370287618,1751937052968,-460.0,0.00020821,2]
[370287620,1751937052978,-460.0,0.00020821,2]
[370287622,1751937052988,-2549.65,0.00020821,2]
[370287624,1751937052997,-5668.98,0.00020821,2]
[370287626,1751937053008,-68.97414831,0.00020821,2]
[370289573,1751937101096,2011.39352666,0.00027397,120]
[370289574,1751937223635,158.401893,0.00013699,2]
[370289576,1751937235468,185.0,0.00016438,3]
[370289578,1751937551573,177.0,0.00016438,3]
[370289579,1751937869890,163.0,0.00016438,3]
[370289580,1751938010093,-153.27597638,0.00018225,2]
[370289581,1751938034080,-518.06472442,0.00018225,2]
[370289582,1751938034102,-245.38721621,0.00018898,2]
[370289583,1751938040068,-54.61278379,0.00018898,2]
[370289584,1751938040090,-336.63335904,0.00018898,2]
[370289585,1751938187810,161.0,0.00016438,3]
[370289597,1751938232700,-151.65710842,0.00018709,2]
[370289598,1751938232710,-656.5990439,0.00019078,2]
[370289599,1751938232721,-300.0,0.00019176,2]
[370289600,1751938232731,-1200.0,0.00019176,2]
[370289601,1751938232741,-294.91780053,0.00019176,2]
[370289602,1751938232751,-227.29209382,0.00019177,2]
[370289603,1751938232761,-249.29142169,0.00019177,2]
[370289604,1751938232770,-500.0,0.00019177,2]
[370289605,1751938232781,-500.0,0.00019177,2]
[370289607,1751938232790,-457.91837375,0.00019177,2]
[370289618,1751938232998,-500.0,0.00019177,2]
[370289619,1751938233008,-500.0,0.00019177,2]
[370289620,1751938233019,-600.0,0.00019177,2]
[370289621,1751938233029,-601.81174642,0.00019178,2]
[370289622,1751938233038,-460.0,0.00019178,2]
[370289623,1751938233048,-151.0,0.00019178,2]
[370289624,1751938233058,-350.16488843,0.00019178,2]
[370289625,1751938233071,-109.83511157,0.00019178,2]
[370289626,1751938233080,-240.0,0.00019178,2]
[370289627,1751938233090,-240.0,0.00019178,2]
[370289628,1751938233100,-36.19794405,0.00019178,2]
[370289633,1751938238682,-423.80205595,0.00019178,2]
[370289634,1751938238692,-460.0,0.00019178,2]
[370289635,1751938238701,-460.0,0.00019178,2]
[370289636,1751938238709,-53.19794405,0.00019178,2]
[370289637,1751938238756,-406.80205595,0.00019178,2]
[370289638,1751938238765,-460.0,0.00019178,2]
[370289639,1751938238774,-460.0,0.00019178,2]
[370289640,1751938238784,-460.0,0.00019178,2]
[370289641,1751938238793,-497.65,0.00019178,2]
[370289642,1751938238802,-460.0,0.00019178,2]
[370289643,1751938238811,-561.04092521,0.00019178,2]
[370289644,1751938238822,-460.0,0.00019178,2]
[370289645,1751938238833,-460.0,0.00019178,2]
[370289646,1751938238842,-559.96,0.00019178,2]
[370289647,1751938238852,-460.0,0.00019178,2]
[370289648,1751938238862,-460.0,0.00019178,2]
[370289649,1751938238871,-460.0,0.00019178,2]
[370289650,1751938238881,-4.48338916,0.00019178,2]
[370289651,1751938238893,-370.74806104,0.00019178,2]
[370289652,1751938238902,-460.0,0.00019178,2]
[370289653,1751938238911,-460.0,0.00019178,2]
[370289654,1751938238921,-460.0,0.00019178,2]
[370289655,1751938238931,-460.0,0.00019178,2]
[370289656,1751938238940,-460.0,0.00019178,2]
[370289657,1751938238949,-460.0,0.00019178,2]
[370289658,1751938238959,-460.0,0.00019178,2]
[370289659,1751938238968,-460.0,0.00019178,2]
[370289660,1751938238977,-460.0,0.00019178,2]
[370289661,1751938238986,-460.0,0.00019178,2]
[370289662,1751938238996,-460.0,0.00019178,2]
[370289663,1751938239005,-460.0,0.00019178,2]
[370289664,1751938239015,-460.0,0.00019178,2]
[370289665,1751938239024,-460.0,0.00019178,2]
[370289666,1751938239034,-460.0,0.00019178,2]
[370289667,1751938239044,-150.67399097,0.00019178,2]
[370289668,1751938239053,-460.0,0.00019178,2]
[370289669,1751938239063,-460.0,0.00019178,2]
[370289670,1751938239073,-460.0,0.00019178,2]
[370289671,1751938239082,-460.0,0.00019178,2]
[370289672,1751938239091,-460.0,0.00019178,2]
[370289673,1751938239100,-460.0,0.00019178,2]
[370289674,1751938239110,-460.0,0.00019178,2]
[370289675,1751938239119,-460.0,0.00019178,2]
[370289676,1751938239128,-460.0,0.00019178,2]
[370289677,1751938239138,-460.0,0.00019178,2]
[370289678,1751938239147,-460.0,0.00019178,2]
[370289679,1751938239157,-3250.28,0.00019178,2]
[370289680,1751938239166,-460.0,0.00019178,2]
[370289681,1751938239175,-460.0,0.00019178,2]
[370289682,1751938239184,-483.38,0.00019178,2]
[370289683,1751938239194,-460.0,0.00019178,2]
[370289684,1751938239203,-478.79,0.00019178,2]
[370289685,1751938239212,-460.0,0.00019178,2]
[370289686,1751938239221,-790.04,0.00019178,2]
[370289687,1751938239230,-460.0,0.00019178,2]
[370289688,1751938239239,-460.0,0.00019178,2]
[370289689,1751938239249,-705.89981249,0.00019178,2]
[370289690,1751938239262,-578.01018751,0.00019178,2]
[370289691,1751938239272,-176.39182262,0.00019178,2]
[370289692,1751938239283,-820.32817738,0.00019178,2]
[370289693,1751938239293,-211.06093862,0.00019178,2]
[370289694,1751938239305,-248.93906138,0.00019178,2]
[370289695,1751938239314,-180.65240631,0.00019178,2]
[370289696,1751938239330,-279.34759369,0.00019178,2]
[370289697,1751938239340,-460.0,0.00019178,2]
[370289698,1751938239349,-460.0,0.00019178,2]
[370289699,1751938239359,-440.26493873,0.00019178,2]
[370289700,1751938239374,-19.73506127,0.00019178,2]
[370289701,1751938239383,-460.0,0.00019178,2]
[370289702,1751938239392,-460.0,0.00019178,2]
[370289703,1751938239402,-460.0,0.00019178,2]
[370289704,1751938239411,-488.48,0.00019178,2]
[370289705,1751938239421,-460.0,0.00019178,2]
[370289706,1751938239430,-471.81,0.00019178,2]
[370289707,1751938239439,-138.22453001,0.00019178,2]
[370289751,1751938240965,-321.77546999,0.00019178,2]
[370289753,1751938240975,-540.0,0.00019178,2]
[370289755,1751938240985,-1491.28,0.00019178,2]
[370289757,1751938240994,-492.77,0.00019178,2]
[370289759,1751938241003,-1895.43,0.00019178,2]
[370289761,1751938241013,-1387.81,0.00019178,2]
[370289763,1751938241022,-2399.48,0.00019178,2]
[370289765,1751938241032,-481.14,0.00019178,2]
[370289767,1751938241041,-604.01,0.00019178,2]
[370289769,1751938241050,-3288.68,0.00019178,2]
[370289772,1751938241061,-460.0,0.00019178,2]
[370289773,1751938241070,-460.0,0.00019178,2]
[370289775,1751938241079,-460.0,0.00019178,2]
[370289777,1751938241088,-460.0,0.00019178,2]
[370289780,1751938241098,-460.0,0.00019178,2]
[370289781,1751938241107,-661.99,0.00019178,2]
[370289783,1751938241116,-460.0,0.00019178,2]
[370289785,1751938241125,-527.4,0.00019178,2]
[370289787,1751938241134,-460.0,0.00019178,2]
[370289789,1751938241143,-460.0,0.00019178,2]
[370289791,1751938241152,-1317.08,0.00019178,2]
[370289793,1751938241161,-460.0,0.00019178,2]
[370289795,1751938241170,-460.0,0.00019178,2]
[370289797,1751938241180,-460.0,0.00019178,2]
[370289800,1751938241189,-460.0,0.00019178,2]
[370289801,1751938241199,-460.0,0.00019178,2]
[370289803,1751938241208,-2328.4,0.00019178,2]
[370289806,1751938241217,-460.0,0.00019178,2]
[370289807,1751938241226,-460.0,0.00019178,2]
[370289809,1751938241235,-460.0,0.00019178,2]
[370289811,1751938241244,-968.55,0.00019178,2]
[370289813,1751938241253,-1943.64,0.00019178,2]
[370289815,1751938241262,-460.0,0.00019178,2]
[370289817,1751938241271,-460.0,0.00019178,2]
[370289819,1751938241280,-460.0,0.00019178,2]
[370289821,1751938241289,-618.57,0.00019178,2]
[370289823,1751938241298,-460.0,0.00019178,2]
[370289825,1751938241307,-460.0,0.00019178,2]
[370289827,1751938241317,-460.0,0.00019178,2]
[370289829,1751938241326,-460.0,0.00019178,2]
[370289831,1751938241336,-460.0,0.00019178,2]
[370289833,1751938241345,-460.0,0.00019178,2]
[370289835,1751938241354,-495.53964708,0.00019178,2]
[370289837,1751938241363,-546.60925707,0.00019178,2]
[370289839,1751938241373,-460.0,0.00019178,2]
[370289841,1751938241383,-1301.97,0.00019178,2]
[370289843,1751938241392,-460.0,0.00019178,2]
[370289845,1751938241402,-460.0,0.00019178,2]
[370289847,1751938241412,-1446.14,0.00019178,2]
[370289849,1751938241421,-460.0,0.00019178,2]
[370289851,1751938241430,-460.0,0.00019178,2]
[370289853,1751938241439,-460.0,0.00019178,2]
[370289855,1751938241449,-460.0,0.00019178,2]
[370289857,1751938241458,-530.53,0.00019178,2]
[370289859,1751938241468,-563.41,0.00019178,2]
[370289861,1751938241477,-460.0,0.00019178,2]
[370289863,1751938241486,-460.0,0.00019178,2]
[370289865,1751938241497,-460.0,0.00019178,2]
[370289867,1751938241510,-460.0,0.00019178,2]
[370289869,1751938241520,-1043.09,0.00019178,2]
[370289871,1751938241530,-497.89802837,0.00019178,2]
[370289873,1751938241539,-460.0,0.00019178,2]
[370289876,1751938241548,-489.9,0.00019178,2]
[370289878,1751938241557,-460.0,0.00019178,2]
[370289880,1751938241567,-460.0,0.00019178,2]
[370289882,1751938241577,-2978.93,0.00019178,2]
[370289884,1751938241586,-460.0,0.00019178,2]
[370289886,1751938241595,-460.0,0.00019178,2]
[370289888,1751938241604,-464.49364055,0.00019178,2]
[370289890,1751938241613,-460.97033577,0.00019178,2]
[370289892,1751938241622,-460.0,0.00019178,2]
[370289893,1751938241631,-469.98061774,0.00019178,2]
[370289895,1751938241641,-468.36318594,0.00019178,2]
[370289897,1751938241651,-4204.07,0.00019178,2]
[370289900,1751938241660,-545.68913915,0.00019178,2]
[370289902,1751938241669,-460.0,0.00019178,2]
[370289903,1751938241679,-505.73,0.00019178,2]
[370289905,1751938241688,-460.0,0.00019178,2]
[370289907,1751938241697,-3035.14,0.00019178,2]
[370289909,1751938241706,-460.0,0.00019178,2]
[370289911,1751938241715,-461.70932426,0.00019178,2]
[370289913,1751938241725,-460.0,0.00019178,2]
[370289915,1751938241734,-460.0,0.00019178,2]
[370289917,1751938241743,-460.57959347,0.00019178,2]
[370289920,1751938241754,-460.0,0.00019178,2]
[370289922,1751938241763,-460.0,0.00019178,2]
[370289924,1751938241773,-460.0,0.00019178,2]
[370289926,1751938241783,-726.82,0.00019178,2]
[370289928,1751938241792,-460.0,0.00019178,2]
[370289930,1751938241801,-460.0,0.00019178,2]
[370289932,1751938241811,-460.0,0.00019178,2]
[370289934,1751938241822,-200.498682,0.00019178,2]
[370289936,1751938241832,-500.0,0.00019178,2]
[370289938,1751938241842,-278.7888052,0.00019178,2]
[370289940,1751938241851,-157.338548,0.00019233,2]
[370289942,1751938241860,-240.0,0.00019233,2]
[370289943,1751938241869,-240.0,0.00019233,2]
[370289946,1751938241879,-207.4,0.00019312,2]
[370289948,1751938241888,-245.948153,0.00019353,2]
[370289950,1751938241898,-650.42838096,0.00019364,2]
[370289952,1751938241907,-881.25,0.00019442,3]
[370289953,1751938241916,-440.63,0.00019442,3]
[370289956,1751938241925,-220.31,0.00019442,3]
[370289957,1751938241934,-660.97,0.00019442,3]
[370289960,1751938241944,-460.0,0.00019452,2]
[370289962,1751938241955,-460.0,0.00019452,2]
[370289964,1751938241965,-240.0,0.00019452,2]
[370289966,1751938241974,-240.0,0.00019452,2]
[370289968,1751938241984,-240.0,0.00019452,2]
[370289970,1751938241993,-240.0,0.00019452,2]
[370289971,1751938242003,-240.0,0.00019452,2]
[370289974,1751938242013,-240.0,0.00019452,2]
[370289976,1751938242022,-460.0,0.00019452,2]
[370289978,1751938242032,-460.0,0.00019452,2]
[370289980,1751938242042,-460.0,0.00019452,2]
[370289982,1751938242052,-335.2087509,0.00019452,2]
[370289984,1751938242061,-460.0,0.00019452,2]
[370289986,1751938242070,-559.96,0.00019452,2]
[370289988,1751938242080,-460.0,0.00019452,2]
[370289990,1751938242089,-92.4638332,0.00019452,2]
[370290158,1751938244186,158.401893,0.00013699,2]
[370290408,1751938246706,-460.0,0.00019178,2]
[370290410,1751938246716,-367.5361668,0.00019452,2]
[370290412,1751938246726,-460.0,0.00019452,2]
[370290414,1751938246735,-460.0,0.00019452,2]
[370290416,1751938246745,-460.0,0.00019452,2]
[370290418,1751938246754,-460.0,0.00019452,2]
[370290420,1751938246766,-540.0,0.00019452,2]
[370290422,1751938246776,-460.0,0.00019452,2]
[370290424,1751938246786,-460.0,0.00019452,2]
[370290426,1751938246795,-410.35596139,0.00019452,2]
[370290428,1751938246804,-460.0,0.00019452,2]
[370290430,1751938246814,-460.0,0.00019452,2]
[370290432,1751938246825,-460.0,0.00019452,2]
[370290434,1751938246834,-460.0,0.00019452,2]
[370290436,1751938246844,-460.0,0.00019452,2]
[370290438,1751938246854,-460.0,0.00019452,2]
[370290440,1751938246863,-460.0,0.00019452,2]
[370290442,1751938246872,-460.0,0.00019452,2]
[370290444,1751938246882,-460.0,0.00019452,2]
[370290446,1751938246891,-460.0,0.00019452,2]
[370290448,1751938246900,-3250.28,0.00019452,2]
[370290450,1751938246910,-460.0,0.00019452,2]
[370290453,1751938246919,-483.38,0.00019452,2]
[370290456,1751938246929,-460.0,0.00019452,2]
[370290459,1751938246938,-478.79,0.00019452,2]
[370290462,1751938246948,-460.0,0.00019452,2]
[370290466,1751938246958,-790.04,0.00019452,2]
[370290467,1751938246968,-437.84132007,0.00019452,2]
[370290471,1751938246989,-22.15867993,0.00019452,2]
[370290473,1751938246998,-460.0,0.00019452,2]
[370290475,1751938247007,-1283.91,0.00019452,2]
[370290477,1751938247017,-996.72,0.00019452,2]
[370290479,1751938247026,-460.0,0.00019452,2]
[370290481,1751938247036,-460.0,0.00019452,2]
[370290483,1751938247045,-460.0,0.00019452,2]
[370290485,1751938247055,-460.0,0.00019452,2]
[370290487,1751938247064,-488.48,0.00019452,2]